bitfinex/quotes_BTCUSD_20250709
["timestamp","ask_amount","ask_price","bid_price","bid_amount"]
[1752086788917,0.22851988,109520.0,109510.0,0.78292073]
[1752086789590,0.23764996,109520.0,109510.0,0.78292073]
[1752086789822,0.29560053,109520.0,109510.0,0.34816501]
[1752086790032,0.78525145,109520.0,109510.0,0.2730742]
[1752086790242,1.01788838,109520.0,109510.0,0.13469041]
[1752086790454,1.01788838,109520.0,109510.0,0.13469047]
[1752086791097,0.61105624,109520.0,109510.0,0.13469047]
[1752086791313,0.92645145,109520.0,109510.0,0.13469047]
[1752086792141,0.92645145,109520.0,109510.0,0.18927071]
[1752086792371,0.92645145,109520.0,109510.0,0.1074186]
[1752086792573,0.92645145,109520.0,109510.0,0.18927071]
[1752086792778,0.92645145,109520.0,109510.0,0.18927252]
[1752086793398,0.92645145,109520.0,109510.0,0.10742041]
[1752086793612,0.92645145,109520.0,109510.0,0.18927252]
[1752086797098,0.61105624,109520.0,109510.0,0.18927252]
[1752086797297,0.92645145,109520.0,109510.0,0.10742041]
[1752086798182,0.92645145,109520.0,109510.0,0.18927252]
[1752086798389,0.92645145,109520.0,109510.0,0.38103582]
[1752086798596,0.91732104,109520.0,109510.0,0.38103742]
[1752086798808,0.60192583,109520.0,109510.0,0.38103742]
[1752086799008,0.91732104,109520.0,109510.0,0.38103742]
[1752086799215,0.90819046,109520.0,109510.0,0.37190584]
[1752086799750,0.90819046,109520.0,109510.0,0.18927412]
[1752086800389,0.90819046,109520.0,109510.0,0.37190584]
[1752086801232,0.90819046,109520.0,109510.0,0.38103742]
[1752086801356,0.90819046,109520.0,109510.0,0.18927412]
[1752086801560,0.90846046,109520.0,109510.0,0.18927412]
[1752086802193,0.90846046,109520.0,109510.0,0.37190584]
[1752086803050,0.59306525,109520.0,109510.0,0.37190584]
[1752086803214,0.90846046,109520.0,109510.0,0.37190584]
[1752086803712,0.90846046,109520.0,109510.0,0.35484947]
[1752086804293,0.90846046,109520.0,109510.0,0.18641876]
[1752086804712,0.99999739,109520.0,109510.0,0.18927508]
[1752086804978,0.99999739,109520.0,109510.0,0.10742297]
[1752086805191,0.68460218,109520.0,109510.0,0.10742297]
[1752086805348,0.99999739,109520.0,109510.0,0.10742297]
[1752086806784,0.90856046,109520.0,109510.0,0.10742297]
[1752086807972,0.90856046,109520.0,109510.0,0.10742301]
[1752086808176,0.59316525,109520.0,109510.0,0.10456905]
[1752086808381,0.90856046,109520.0,109510.0,0.10742541]
[1752086808785,0.59316525,109520.0,109510.0,0.10742541]
[1752086809112,0.59316525,109520.0,109510.0,0.18927752]
[1752086809311,0.90856046,109520.0,109510.0,0.18927752]
[1752086810187,0.59316525,109520.0,109510.0,0.37190924]
[1752086810390,0.90856046,109520.0,109510.0,0.38104082]
[1752086810599,0.90856046,109520.0,109510.0,0.18927752]
[1752086810933,1.22421171,109520.0,109510.0,0.18927752]
[1752086813926,1.22421171,109520.0,109510.0,0.18927535]
[1752086814293,1.23691468,109520.0,109510.0,0.18927535]
[1752086814621,1.22421171,109520.0,109510.0,0.18927535]
[1752086815259,0.90868848,109520.0,109510.0,0.18927535]
[1752086815668,1.22421171,109520.0,109510.0,0.18927535]
[1752086816877,1.22421171,109520.0,109510.0,0.18927531]
[1752086818487,0.59316525,109520.0,109510.0,0.18927531]
[1752086818687,1.22421171,109520.0,109510.0,0.18927531]
[1752086819084,1.31564864,109520.0,109510.0,0.18927531]
[1752086819312,0.68460218,109520.0,109510.0,0.18927531]
[1752086819541,1.31564864,109520.0,109510.0,0.18927531]
[1752086819744,1.31564864,109520.0,109510.0,0.18928708]
[1752086819944,1.22421171,109520.0,109510.0,0.18928708]
[1752086820341,0.45196525,109520.0,109510.0,0.18928708]
[1752086820493,0.76748848,109520.0,109510.0,0.18928708]
[1752086820693,0.90860848,109520.0,109510.0,0.18928708]
[1752086821090,0.26719021,109520.0,109510.0,0.70623494]
[1752086821296,0.44249608,109520.0,109510.0,0.66078595]
[1752086821490,0.45755732,109520.0,109510.0,0.66991695]
[1752086821735,0.46075732,109520.0,109510.0,0.66991555]
[1752086822293,0.46075799,109520.0,109510.0,0.6844564]
[1752086822499,0.27814295,109520.0,109510.0,0.6844564]
[1752086822798,0.2690122,109520.0,109510.0,0.6844564]
[1752086823048,0.45162724,109520.0,109510.0,0.36893317]
[1752086823198,0.46075799,109520.0,109510.0,0.6844564]
[1752086823401,0.46075799,109520.0,109510.0,0.36893317]
[1752086823599,0.27814295,109520.0,109510.0,0.6844564]
[1752086823890,0.25988154,109520.0,109510.0,0.6844564]
[1752086826253,0.45162724,109520.0,109510.0,0.6844564]
[1752086826479,0.2690122,109520.0,109510.0,0.6844564]
[1752086826989,0.46075799,109520.0,109510.0,0.6844564]
[1752086827405,0.47665799,109520.0,109510.0,0.36893317]
[1752086827576,0.47665799,109520.0,109510.0,0.6844564]
[1752086828316,0.25752021,109520.0,109510.0,0.6844564]
[1752086828493,0.18744033,109520.0,109510.0,0.6844564]
[1752086828729,0.23842037,109520.0,109510.0,0.7009564]
[1752086828951,0.19657033,109520.0,109510.0,0.69810008]
[1752086829352,0.18667,109520.0,109510.0,0.71103008]
[1752086829884,0.18667,109520.0,109510.0,0.80246701]
[1752086830080,0.22851988,109520.0,109510.0,0.80246701]
[1752086830318,0.18667,109520.0,109510.0,0.8024639]
[1752086830521,0.22851988,109520.0,109510.0,0.8024639]
[1752086830977,0.22851988,109520.0,109510.0,0.72061179]
[1752086831575,0.18667,109520.0,109510.0,0.72061179]
[1752086831780,0.18667,109520.0,109510.0,0.82954357]
[1752086834820,0.22851988,109520.0,109510.0,0.82954357]
[1752086835005,0.18667,109520.0,109510.0,0.82954357]
[1752086837603,0.18667,109520.0,109510.0,1.1450668]
[1752086837784,0.18667,109520.0,109510.0,0.82954357]
[1752086838401,0.18667,109520.0,109510.0,1.52719018]
[1752086839518,0.10442155,109520.0,109510.0,0.89614372]
[1752086839717,0.10442155,109520.0,109510.0,1.21366695]
[1752086839879,0.10442155,109520.0,109510.0,1.52919018]
[1752086840085,0.10442155,109520.0,109510.0,1.21366695]
[1752086840336,0.10442155,109520.0,109510.0,1.10473517]
[1752086840921,0.10442155,109520.0,109510.0,1.10573517]
[1752086842333,0.10442155,109520.0,109510.0,1.09313517]
[1752086843510,0.10442155,109520.0,109510.0,1.21466695]
[1752086844640,0.14627143,109520.0,109510.0,1.20206695]
[1752086844861,0.14627143,109520.0,109510.0,1.20173695]
[1752086844862,0.10442155,109520.0,109510.0,1.20173695]
[1752086845060,0.14627143,109520.0,109510.0,1.20173695]
[1752086845641,0.10442155,109520.0,109510.0,1.51726018]
[1752086845873,0.10442155,109520.0,109510.0,1.53019018]
[1752086847550,0.10442155,109520.0,109510.0,2.02014058]
[1752086847986,0.03500951,109540.0,109530.0,0.21051711]
[1752086848177,0.03500951,109540.0,109530.0,1.00374697]
[1752086848947,0.07685939,109540.0,109530.0,1.00374697]
[1752086849752,0.03500951,109540.0,109530.0,0.68822374]
[1752086849931,0.03600951,109540.0,109530.0,1.00374697]
[1752086851411,0.08900789,109540.0,109530.0,0.68769374]
[1752086851609,0.07987939,109540.0,109530.0,1.00321697]
[1752086852443,0.03802951,109540.0,109530.0,1.00321697]
[1752086852732,0.07987939,109540.0,109530.0,1.00321697]
[1752086853242,0.03802951,109540.0,109530.0,1.00321697]
[1752086853372,0.07987939,109540.0,109530.0,1.00321697]
[1752086853958,0.03802951,109540.0,109530.0,0.68769374]
[1752086854161,0.07987939,109540.0,109530.0,1.00321697]
[1752086854876,0.04405784,109540.0,109530.0,1.00321697]
[1752086855077,0.04715784,109540.0,109530.0,1.00321697]
[1752086855327,0.08900772,109540.0,109530.0,1.00321697]
[1752086855606,0.09813613,109540.0,109530.0,1.00314981]
[1752086856044,0.08900772,109540.0,109530.0,1.00314981]
[1752086856419,0.07987939,109540.0,109530.0,1.00314981]
[1752086856592,0.03802951,109540.0,109530.0,1.00314981]
[1752086856791,0.03600951,109540.0,109530.0,1.00367981]
[1752086857696,0.03600951,109540.0,109530.0,1.08534791]
[1752086857919,0.07785939,109540.0,109530.0,1.03090251]
[1752086858351,0.03290951,109540.0,109530.0,1.03090251]
[1752086858585,0.03290951,109540.0,109530.0,1.13086589]
[1752086858817,0.01750951,109540.0,109530.0,1.13086589]
[1752086859012,0.00113918,109540.0,109530.0,1.13086589]
[1752086859624,0.00113918,109540.0,109530.0,1.13186589]
[1752086859860,0.01673918,109540.0,109530.0,1.13186589]
[1752086860064,0.01750951,109540.0,109530.0,1.13186589]
[1752086860268,0.01650951,109540.0,109530.0,1.13186589]
[1752086860673,0.01650951,109540.0,109530.0,1.13286589]
[1752086860879,0.01650951,109540.0,109530.0,1.05119779]
[1752086861294,0.03280951,109540.0,109530.0,1.05119779]
[1752086862476,0.07465939,109540.0,109530.0,1.1328909]
[1752086862656,0.03578951,109540.0,109530.0,1.05119779]
[1752086862852,0.07763939,109540.0,109530.0,1.05119779]
[1752086863083,0.07763939,109540.0,109530.0,0.73567456]
[1752086863297,0.07763939,109540.0,109530.0,1.05119779]
[1752086863907,0.03578951,109540.0,109530.0,1.05119779]
[1752086864109,0.07763939,109540.0,109530.0,1.05119779]
[1752086864881,0.03578951,109540.0,109530.0,1.05119779]
[1752086865102,0.07763939,109540.0,109530.0,1.05119779]
[1752086865520,0.03578951,109540.0,109530.0,1.05119779]
[1752086865746,0.07763939,109540.0,109530.0,1.05119779]
[1752086865955,0.03578951,109540.0,109530.0,1.05119779]
[1752086866160,0.07763939,109540.0,109530.0,1.05119779]
[1752086866585,0.07465939,109540.0,109530.0,1.05119779]
[1752086866814,0.07763939,109540.0,109530.0,1.05119779]
[1752086867031,0.08378789,109540.0,109530.0,0.73514456]
[1752086867247,0.08889789,109540.0,109530.0,0.73514456]
[1752086867666,0.08889789,109540.0,109530.0,1.05066779]
[1752086867881,0.08889789,109540.0,109530.0,1.05979862]
[1752086868129,0.07976939,109540.0,109530.0,1.05066779]
[1752086868343,0.03578951,109540.0,109530.0,1.05119779]
[1752086869684,0.00013918,109540.0,109530.0,2.39806402]
[1752086869928,0.07853021,109570.0,109560.0,0.22447046]
[1752086870167,0.07857669,109570.0,109560.0,1.22796448]
[1752086870402,0.07857669,109570.0,109560.0,0.91297125]
[1752086870631,0.07857669,109570.0,109560.0,0.91244125]
[1752086871106,0.07857669,109570.0,109560.0,0.96703383]
[1752086871330,0.04289636,109570.0,109560.0,1.05847076]
[1752086871774,0.00104648,109570.0,109560.0,1.05847076]
[1752086872850,0.00104648,109570.0,109560.0,0.74335218]
[1752086873068,0.03755648,109570.0,109560.0,1.05847076]
[1752086873269,0.03855648,109570.0,109560.0,1.05847076]
[1752086873623,0.03855648,109570.0,109560.0,1.0584356]
[1752086873826,0.03855648,109570.0,109560.0,1.09928603]
[1752086874031,0.08040636,109570.0,109560.0,1.0448188]
[1752086874616,0.03642648,109570.0,109560.0,1.0448188]
[1752086874824,0.07827636,109570.0,109560.0,1.0448188]
[1752086875222,0.03642648,109570.0,109560.0,1.0448188]
[1752086875409,0.07827636,109570.0,109560.0,1.0448188]
[1752086876228,0.07827636,109570.0,109560.0,1.04462365]
[1752086876430,0.07827636,109570.0,109560.0,1.04461051]
[1752086877131,0.07827636,109570.0,109560.0,1.09461051]
[1752086877339,0.03642648,109570.0,109560.0,1.09461051]
[1752086877541,0.00204648,109570.0,109560.0,1.09461051]
[1752086877816,0.00204648,109570.0,109560.0,1.19490389]
[1752086878553,0.00104648,109570.0,109560.0,1.46002247]
[1752086878762,0.00104648,109570.0,109560.0,1.40681677]
[1752086879242,0.00104648,109570.0,109560.0,1.39421677]
[1752086879560,4.648e-05,109570.0,109560.0,1.50314855]
[1752086879761,4.648e-05,109570.0,109560.0,1.39521677]
[1752086880011,4.648e-05,109570.0,109560.0,1.50414855]
[1752086880386,4.648e-05,109570.0,109560.0,1.84414855]
[1752086880688,4.648e-05,109570.0,109560.0,1.85674855]
[1752086880960,4.648e-05,109570.0,109560.0,2.05674855]
[1752086881186,0.0312,109590.0,109580.0,0.54008071]
[1752086881417,0.01564647,109590.0,109580.0,1.19846939]
[1752086881635,0.01564647,109590.0,109580.0,1.53844568]
[1752086881838,0.01564647,109590.0,109580.0,1.48422958]
[1752086882043,0.01564647,109590.0,109580.0,1.49322123]
[1752086882264,0.01564647,109590.0,109580.0,1.48422958]
[1752086882466,0.01564647,109590.0,109580.0,1.53842323]
[1752086882467,0.03124647,109590.0,109580.0,1.53842323]
[1752086884298,0.01564647,109590.0,109580.0,1.53842323]
[1752086884721,0.03154647,109590.0,109580.0,1.53842323]
[1752086885131,0.03154647,109590.0,109580.0,1.56636865]
[1752086885271,0.05490538,109590.0,109580.0,1.56636865]
[1752086885479,0.0549053,109590.0,109580.0,1.48500893]
[1752086885687,0.0457808,109590.0,109580.0,1.48500893]
[1752086886140,0.03665647,109590.0,109580.0,1.48500893]
[1752086886347,0.04578072,109590.0,109580.0,1.48500893]
[1752086886554,0.03665647,109590.0,109580.0,1.56636865]
[1752086887194,0.04578064,109590.0,109580.0,1.3012099]
[1752086887417,0.03665647,109590.0,109580.0,1.3012099]
[1752086887945,4.647e-05,109590.0,109580.0,1.61632848]
[1752086889129,0.01544647,109590.0,109580.0,1.61632848]
[1752086890072,0.03558647,109590.0,109580.0,1.61632848]
[1752086891473,0.03244647,109590.0,109580.0,1.61632848]
[1752086894265,0.03244647,109590.0,109580.0,1.56213483]
[1752086895099,0.03244647,109590.0,109580.0,1.57111947]
[1752086895733,4.647e-05,109590.0,109580.0,1.57111947]
[1752086895949,4.647e-05,109590.0,109580.0,1.57113363]
[1752086897391,0.01584647,109590.0,109580.0,1.57113363]
[1752086897596,0.03134647,109590.0,109580.0,1.57113363]
[1752086898327,0.03448647,109590.0,109580.0,1.48977391]
[1752086898630,0.36085922,109590.0,109580.0,1.23721918]
[1752086898794,0.3798783,109590.0,109580.0,1.12091264]
[1752086898972,0.3707538,109590.0,109580.0,1.12091264]
[1752086899385,0.05563522,109590.0,109580.0,1.12091264]
[1752086899760,0.0373868,109590.0,109580.0,1.12091264]
[1752086900169,0.0373868,109590.0,109580.0,1.09296722]
[1752086902314,0.0373868,109590.0,109580.0,1.0116228]
[1752086902717,0.0373868,109590.0,109580.0,1.01167287]
[1752086903130,0.0373868,109590.0,109580.0,1.12060465]
[1752086906912,0.05563538,109590.0,109580.0,1.02916772]
[1752086907250,0.37075396,109590.0,109580.0,1.02916772]
[1752086907372,0.37987838,109590.0,109580.0,1.02916772]
[1752086907577,0.36162963,109590.0,109580.0,1.02916772]
[1752086908488,0.41260393,109590.0,109580.0,1.02916772]
[1752086908865,0.66556037,109590.0,109580.0,0.52109251]
[1752086909074,0.61335192,109590.0,109580.0,0.57121172]
[1752086909282,0.60422767,109590.0,109580.0,0.56208631]
[1752086909499,0.60422767,109590.0,109580.0,0.66202351]
[1752086909694,0.60422767,109590.0,109580.0,0.67119204]
[1752086909895,0.10661002,109590.0,109580.0,0.67119154]
[1752086910120,0.10660977,109590.0,109580.0,0.67119154]
[1752086910329,0.43997777,109590.0,109580.0,0.67119154]
[1752086910691,0.604228,109590.0,109580.0,0.48476481]
[1752086910893,0.604228,109590.0,109580.0,0.62564481]
[1752086911074,0.59510333,109590.0,109580.0,0.63477056]
[1752086911278,0.59510333,109590.0,109580.0,0.64389622]
[1752086911456,0.59196333,109590.0,109580.0,0.6530218]
[1752086911668,0.27998475,109590.0,109580.0,0.6530218]
[1752086911883,0.59510333,109590.0,109580.0,0.6530218]
[1752086912083,0.59510333,109590.0,109580.0,0.64390031]
[1752086912598,0.27998475,109590.0,109580.0,0.64390031]
[1752086912826,0.59510333,109590.0,109580.0,0.64390031]
[1752086913164,0.90109716,109590.0,109580.0,0.30225385]
[1752086913364,0.91317401,109590.0,109580.0,0.30225385]
[1752086913566,0.91317401,109590.0,109580.0,0.3566875]
[1752086913779,0.26173508,109590.0,109580.0,0.3566875]
[1752086913973,0.89197224,109590.0,109580.0,0.3566875]
[1752086914407,0.26173508,109590.0,109580.0,0.50745396]
[1752086914608,0.57685366,109590.0,109580.0,0.50745396]
[1752086915231,0.26173508,109590.0,109580.0,0.50745396]
[1752086915440,0.57685366,109590.0,109580.0,0.50744949]
[1752086915665,0.57685366,109590.0,109580.0,0.51657507]
[1752086916122,0.72693858,109590.0,109580.0,0.51657507]
[1752086916318,0.73606325,109590.0,109580.0,0.51657507]
[1752086916515,0.73606325,109590.0,109580.0,0.52569988]
[1752086916950,0.42094467,109590.0,109580.0,0.52569988]
[1752086917167,0.73610325,109590.0,109580.0,0.67582529]
[1752086917383,0.73610325,109590.0,109580.0,0.67582479]
[1752086917571,0.73610325,109590.0,109580.0,0.67582429]
[1752086917572,0.24761035,109590.0,109580.0,0.67582429]
[1752086917784,0.42172893,109590.0,109580.0,0.64315828]
[1752086918001,0.62247633,109590.0,109580.0,0.67580498]
[1752086918881,0.62247633,109590.0,109580.0,0.65755457]
[1752086919093,0.62247708,109590.0,109580.0,0.6666799]
[1752086919502,0.62247708,109590.0,109580.0,0.67580515]
[1752086920468,0.61935708,109590.0,109580.0,0.67580515]
[1752086920681,0.61935708,109590.0,109580.0,1.08289024]
[1752086920682,0.03134647,109590.0,109580.0,1.08289024]
[1752086920897,4.647e-05,109590.0,109580.0,1.02845751]
[1752086921103,4.647e-05,109590.0,109580.0,0.73056893]
[1752086921309,0.04189635,109590.0,109580.0,1.04567979]
[1752086921693,0.04189635,109590.0,109580.0,1.07259511]
[1752086921931,0.04189635,109590.0,109580.0,0.96366333]
[1752086922748,0.04189635,109590.0,109580.0,0.94676333]
[1752086923754,0.04189635,109590.0,109580.0,1.05569511]
[1752086923957,0.04189635,109590.0,109580.0,0.79057653]
[1752086924109,0.05749635,109590.0,109580.0,0.79057653]
[1752086924488,0.07369635,109590.0,109580.0,0.79057653]
[1752086924689,0.07369635,109590.0,109580.0,0.79956818]
[1752086924839,0.07369635,109590.0,109580.0,0.79057653]
[1752086925458,0.07369635,109590.0,109580.0,0.79057673]
[1752086926554,0.05749635,109590.0,109580.0,0.79057673]
[1752086927802,0.01564647,109590.0,109580.0,0.79057673]
[1752086928209,0.05749635,109590.0,109580.0,0.79057673]
[1752086928413,0.05749635,109590.0,109580.0,0.79057667]
[1752086928630,0.05749635,109590.0,109580.0,0.78419993]
[1752086928869,0.05749635,109590.0,109580.0,0.79057815]
[1752086929049,0.07449635,109590.0,109580.0,0.79057815]
[1752086929603,0.07449635,109590.0,109580.0,0.79052502]
[1752086929725,0.07449635,109590.0,109580.0,0.79951667]
[1752086930109,0.07449635,109590.0,109580.0,0.79052502]
[1752086931938,0.03264647,109590.0,109580.0,0.79052502]
[1752086932098,0.07449635,109590.0,109580.0,0.79052502]
[1752086932919,0.03264647,109590.0,109580.0,0.79052502]
[1752086933099,0.07449635,109590.0,109580.0,0.79052502]
[1752086933299,0.03264647,109590.0,109580.0,0.79951667]
[1752086933648,0.03264647,109590.0,109580.0,0.79052502]
[1752086933849,0.07449635,109590.0,109580.0,0.79052502]
[1752086934256,0.03264647,109590.0,109580.0,0.79052502]
[1752086934460,0.07449635,109590.0,109580.0,0.79052502]
[1752086934664,0.07449635,109590.0,109580.0,0.79951667]
[1752086934813,0.07449635,109590.0,109580.0,1.1056436]
[1752086935016,0.05749635,109590.0,109580.0,1.1056436]
[1752086935862,0.07309635,109590.0,109580.0,0.79052502]
[1752086936716,0.03124647,109590.0,109580.0,0.79052502]
[1752086936919,0.07309635,109590.0,109580.0,0.79052502]
[1752086937319,0.07309635,109590.0,109580.0,0.79052277]
[1752086937563,0.08222052,109590.0,109580.0,0.79052277]
[1752086937873,0.07309635,109590.0,109580.0,0.79052277]
[1752086939135,0.07309635,109590.0,109580.0,0.68159099]
[1752086939337,0.07309635,109590.0,109580.0,1.10564135]
[1752086939542,0.07309635,109590.0,109580.0,0.79052277]
[1752086939917,0.03124647,109590.0,109580.0,0.79052277]
[1752086940131,0.07309635,109590.0,109580.0,0.79052277]
[1752086942028,0.07309635,109590.0,109580.0,1.10564135]
[1752086943723,0.07309635,109590.0,109580.0,0.79052277]
[1752086944056,0.07309635,109590.0,109580.0,1.114633]
[1752086944267,0.07309635,109590.0,109580.0,1.10564135]
[1752086946340,4.647e-05,109590.0,109580.0,1.10564135]
[1752086947199,0.07665988,109610.0,109600.0,0.0424421]
[1752086947407,0.07665988,109610.0,109600.0,1.05306861]
[1752086947584,0.07665988,109610.0,109600.0,0.96915062]
[1752086948241,0.07665988,109610.0,109600.0,0.65403204]
[1752086948761,0.07765988,109610.0,109600.0,0.65403204]
[1752086949114,0.07865988,109610.0,109600.0,0.65403204]
[1752086950141,0.07865988,109610.0,109600.0,0.76288134]
[1752086950693,0.08080988,109610.0,109600.0,0.76288134]
[1752086950913,0.08993238,109610.0,109600.0,0.76288134]
[1752086951555,0.08682238,109610.0,109600.0,0.76288134]
[1752086951729,0.09001238,109610.0,109600.0,0.76288134]
[1752086952146,0.09001238,109610.0,109600.0,0.77187299]
[1752086952353,0.08088988,109610.0,109600.0,0.65403204]
[1752086954397,0.09001238,109610.0,109600.0,0.65403204]
[1752086954742,0.09001246,109610.0,109600.0,0.65403204]
[1752086956498,0.09913521,109610.0,109600.0,0.65403204]
[1752086956703,0.09001246,109610.0,109600.0,0.65403204]
[1752086957029,0.09913513,109610.0,109600.0,0.65403204]
[1752086957470,0.10825796,109610.0,109600.0,0.65403204]
[1752086958001,0.10825796,109610.0,109600.0,0.73557295]
[1752086958466,0.09913513,109610.0,109600.0,0.73557295]
[1752086958630,0.10825796,109610.0,109600.0,0.73557295]
[1752086958832,0.11738096,109610.0,109600.0,0.73557295]
[1752086959139,0.10825796,109610.0,109600.0,0.73557295]
[1752086959439,0.09001246,109610.0,109600.0,0.73557295]
[1752086959796,0.09001246,109610.0,109600.0,0.71856661]
[1752086960009,0.09001246,109610.0,109600.0,0.73555308]
[1752086960205,0.09001238,109610.0,109600.0,0.65401217]
[1752086960412,0.09001238,109610.0,109600.0,0.73554564]
[1752086961632,0.09913505,109610.0,109600.0,0.73554564]
[1752086961815,0.09913496,109610.0,109600.0,0.73554564]
[1752086963013,0.10825771,109610.0,109600.0,0.73554564]
[1752086963242,0.08088988,109610.0,109600.0,0.73554564]
[1752086963474,0.09001238,109610.0,109600.0,0.73554564]
[1752086964158,0.09913496,109610.0,109600.0,0.73554564]
[1752086964621,0.09913505,109610.0,109600.0,0.73554564]
[1752086964820,0.09001238,109610.0,109600.0,0.73554564]
[1752086965443,0.09913505,109610.0,109600.0,0.65401217]
[1752086965694,0.09001238,109610.0,109600.0,0.65401217]
[1752086965884,0.09913505,109610.0,109600.0,0.65401217]
[1752086967032,0.10825788,109610.0,109600.0,0.65401217]
[1752086967478,0.09913505,109610.0,109600.0,0.65401217]
[1752086968210,0.09001238,109610.0,109600.0,0.65401217]
[1752086968628,0.09913505,109610.0,109600.0,0.65401217]
[1752086968832,0.10825788,109610.0,109600.0,0.65401217]
[1752086969045,0.09913505,109610.0,109600.0,0.65401217]
[1752086969951,0.10825788,109610.0,109600.0,0.65348217]
[1752086971553,0.10825788,109610.0,109600.0,0.6534892]
[1752086971981,0.43327038,109610.0,109600.0,0.64436578]
[1752086972108,0.61573597,109610.0,109600.0,0.05601842]
[1752086972313,0.59749022,109610.0,109600.0,0.46085116]
[1752086972992,0.59749022,109610.0,109600.0,0.47539201]
[1752086973190,0.59749022,109610.0,109600.0,0.52979994]
[1752086973393,0.58836714,109610.0,109600.0,0.20655819]
[1752086973573,0.27324856,109610.0,109600.0,0.34731819]
[1752086973910,0.58836714,109610.0,109600.0,0.2657272]
[1752086974128,0.27324856,109610.0,109600.0,0.2657272]
[1752086974331,0.58836714,109610.0,109600.0,0.44820895]
[1752086974920,0.58836714,109610.0,109600.0,0.45733303]
[1752086975662,0.58836714,109610.0,109600.0,0.53892402]
[1752086976001,0.58836714,109610.0,109600.0,0.54804802]
[1752086976214,0.27324856,109610.0,109600.0,0.54804802]
[1752086976586,0.58836714,109610.0,109600.0,0.54804802]
[1752086976996,0.27324856,109610.0,109600.0,0.54804802]
[1752086977214,0.57924389,109610.0,109600.0,0.53892402]
[1752086978006,0.57924389,109610.0,109600.0,0.54804802]
[1752086978501,0.57924389,109610.0,109600.0,0.46645703]
[1752086980020,0.26412531,109610.0,109600.0,0.46645703]
[1752086980227,0.57924389,109610.0,109600.0,0.46645703]
[1752086980433,0.57924389,109610.0,109600.0,0.46647042]
[1752086981562,0.26412531,109610.0,109600.0,0.55718533]
[1752086981781,0.57924389,109610.0,109600.0,0.55718533]
[1752086984330,0.72000389,109610.0,109600.0,0.55718533]
[1752086985824,0.40488531,109610.0,109600.0,0.55718533]
[1752086986054,0.72000389,109610.0,109600.0,0.56630916]
[1752086986255,0.74737289,109610.0,109600.0,0.56630346]
[1752086986584,0.60661289,109610.0,109600.0,0.56630346]
[1752086987342,0.60661289,109610.0,109600.0,0.56630109]
[1752086989008,0.60661289,109610.0,109600.0,0.54292135]
[1752086989223,0.60661289,109610.0,109600.0,0.56630101]
[1752086992676,0.60661289,109610.0,109600.0,0.55717726]
[1752086993556,0.59749014,109610.0,109600.0,0.55717726]
[1752086994170,0.59749014,109610.0,109600.0,0.54805343]
[1752086994374,0.58836714,109610.0,109600.0,0.54805343]
[1752086994849,0.58836714,109610.0,109600.0,0.55717726]
[1752086995069,0.58836714,109610.0,109600.0,0.55718181]
[1752086996664,0.58817714,109610.0,109600.0,0.55718181]
[1752086998852,0.58805369,109610.0,109600.0,0.55718181]
[1752087000457,0.58805369,109610.0,109600.0,0.50277625]
[1752087000664,0.58805369,109610.0,109600.0,0.48851579]
[1752087000872,0.58805369,109610.0,109600.0,0.51191554]
[1752087004869,0.58805369,109610.0,109600.0,0.50279179]
[1752087005739,0.58805369,109610.0,109600.0,0.50280174]
[1752087006693,0.72877369,109610.0,109600.0,0.50280174]
[1752087007109,0.72877369,109610.0,109600.0,0.49367791]
[1752087007315,0.58805369,109610.0,109600.0,0.49367791]
[1752087009356,0.72877369,109610.0,109600.0,0.49367791]
[1752087010104,0.57900044,109610.0,109600.0,0.15218824]
[1752087010328,1.1261525,109610.0,109600.0,0.19214715]
[1752087010529,1.1261525,109610.0,109600.0,0.15143868]
[1752087011513,1.1261525,109610.0,109600.0,0.09693892]
[1752087012173,1.1261525,109610.0,109600.0,0.0560564]
[1752087017072,1.1210325,109610.0,109600.0,0.0560564]
[1752087017271,1.1261525,109610.0,109600.0,0.0560564]
[1752087020217,1.1261525,109610.0,109600.0,0.03902845]
[1752087021757,0.71972044,109610.0,109600.0,0.03902845]
[1752087021993,0.26400531,109610.0,109600.0,0.04965021]
[1752087022254,0.028093,109610.0,109600.0,0.62132837]
[1752087022466,0.02101617,109610.0,109600.0,0.63682687]
[1752087022686,0.02101617,109610.0,109600.0,0.5170515]
[1752087022890,0.02101617,109610.0,109600.0,0.526175]
[1752087022891,0.02101592,109610.0,109600.0,0.526175]
[1752087023095,0.03926183,109610.0,109600.0,0.48529248]
[1752087023300,0.26656681,109610.0,109600.0,0.47616915]
[1752087023719,0.28316681,109610.0,109600.0,0.47616915]
[1752087023921,0.37460374,109610.0,109600.0,0.47616915]
[1752087024131,0.37161374,109610.0,109600.0,0.48529282]
[1752087024338,0.10070171,109610.0,109600.0,0.49441632]
[1752087024950,0.04462021,109610.0,109600.0,0.52150755]
[1752087025151,0.06286563,109610.0,109600.0,0.52150755]
[1752087025300,0.07198846,109610.0,109600.0,0.52150755]
[1752087025949,0.10050104,109610.0,109600.0,0.52150755]
[1752087026105,0.10962396,109610.0,109600.0,0.52150755]
[1752087026305,0.10050104,109610.0,109600.0,0.52150755]
[1752087026550,0.09137821,109610.0,109600.0,0.52150755]
[1752087026754,0.10050113,109610.0,109600.0,0.52150755]
[1752087026980,0.09137821,109610.0,109600.0,0.52150755]
[1752087027124,0.10050104,109610.0,109600.0,0.52150755]
[1752087028034,0.11700104,109610.0,109600.0,0.52150755]
[1752087028233,0.11700104,109610.0,109600.0,0.52150459]
[1752087028496,0.12612396,109610.0,109600.0,0.52150459]
[1752087029115,0.11700104,109610.0,109600.0,0.52150459]
[1752087029530,0.67432573,109610.0,109600.0,0.33463576]
[1752087029686,0.67432573,109610.0,109600.0,0.48447976]
[1752087029855,0.67432573,109610.0,109600.0,0.55710104]
[1752087030054,0.67432573,109610.0,109600.0,0.47551005]
[1752087030257,0.67432573,109610.0,109600.0,0.46638622]
[1752087030460,0.67432573,109610.0,109600.0,0.4754996]
[1752087030681,0.67432573,109610.0,109600.0,0.51628502]
[1752087031176,0.67432573,109610.0,109600.0,0.52540877]
[1752087031571,0.67432573,109610.0,109600.0,0.51628502]
[1752087032331,0.67432573,109610.0,109600.0,0.50716119]
[1752087032332,0.6652029,109610.0,109600.0,0.50716119]
[1752087033347,0.6652029,109610.0,109600.0,0.51628502]
[1752087034317,0.58915885,109610.0,109600.0,0.51628502]
[1752087034521,0.58915885,109610.0,109600.0,0.52540877]
[1752087034909,0.58915885,109610.0,109600.0,0.51628502]
[1752087035103,0.58915885,109610.0,109600.0,0.52540877]
[1752087035800,0.58915885,109610.0,109600.0,0.51628502]
[1752087036218,0.58915885,109610.0,109600.0,0.52540869]
[1752087039112,0.58915885,109610.0,109600.0,0.51628502]
[1752087039274,0.10088562,109610.0,109600.0,0.53453227]
[1752087039672,0.11000862,109610.0,109600.0,0.53453227]
[1752087039872,0.10088562,109610.0,109600.0,0.53453227]
[1752087040078,0.11000862,109610.0,109600.0,0.53453227]
[1752087040260,0.31072014,109610.0,109600.0,0.53453244]
[1752087040460,0.39303449,109610.0,109600.0,0.53453244]
[1752087041850,0.61652802,109610.0,109600.0,0.53453202]
[1752087042470,0.30159756,109610.0,109600.0,0.53453202]
[1752087044617,0.30159756,109610.0,109600.0,0.5345316]
[1752087044618,0.11000921,109610.0,109600.0,0.5345316]